[Event "Chelyabinskiy variant-A 2021"]
[Site "Chelyabinsk"]
[Date "2021.03.30"]
[Round "9.13"]
[White "Maltsevskaya, Aleksandra"]
[Black "Gabrielian, Artur"]
[Result "0-1"]
[ECO "B54"]
[WhiteElo "2327"]
[BlackElo "2448"]
[Annotator "NA"]
[PlyCount "46"]
[EventDate "2021.03.23"]
[EventType "swiss"]
[EventCountry "RUS"]
[SourceTitle "playchess.com"]
[Source "ChessBase"]
[SourceQuality "1"]
[TimeControl "5400+30"]

1. e4 {[%emt 0:00:00]} c5 {[%emt 0:01:21]} 2. Nf3 {[%emt 0:00:00]} d6 {[%emt 0:00:05]} 3. d4 {[%emt 0:00:00]} cxd4 {[%emt 0:00:04]} 4. Nxd4 {[%emt 0:00:00]} Nf6 {[%emt 0:00:05]} 5. f3 {[%emt 0:00:07]} Nc6 {[%emt 0:00:24]} 6. c4 {[%emt 0:00:07]} Qb6 {[%emt 0:00:05]} 7. Nc2 {[%emt 0:00:06]} g6 {[%emt 0:00:04]} 8. Nc3 {[%emt 0:00:38]} Bg7 {[%emt 0:00:06]} 9. Nb5 {[%emt 0:12:12]} a6 {[%emt 0:06:33]} 10. Be3 {[%emt 0:01:42]} Qa5+ {[%emt 0:00:07]} 11. Bd2 {[%emt 0:02:42]} Qd8 {[%emt 0:00:16]} 12. Nc3 {[%emt 0:00:31]} O-O {[%emt 0:00:42]} 13. Be2 {[%emt 0:01:03]} e6 {[%emt 0:04:12]} 14. Be3 {[%emt 0:21:03]} d5 {[%emt 0:04:47]} 15. cxd5 {[%emt 0:01:22]} exd5 {[%emt 0:00:04]} 16. Nxd5 {[%emt 0:10:18]} Nxd5 {[%emt 0:00:54]} 17. Qxd5 {[%emt 0:00:09]} Qh4+ {[%emt 0:12:49]} 18. g3 {[%emt 0:07:11]} Qf6 {[%emt 0:01:23]} 19. Kf2 {[%emt 0:02:30]} Be6 {[%emt 0:08:22]} 20. Qc5 {[%emt 0:11:15]} Rac8 {[%emt 0:03:08]} 21. Nb4 {[%emt 0:00:51]} Ne5 {[%emt 0:06:35]} 22. Qb6 {[%emt 0:00:52]} Ng4+ {[%emt 0:00:24]} 23. Kg2 {[%emt 0:00:18]} Qxb2 {[%emt 0:00:21]} 0-1